lending/lending_fUSD_20250819
["ID","MTS","AMOUNT","RATE_DAILY","PERIOD"]
[380256298,1755629251765,-3015.43,0.00022999,30]
[380256299,1755629251810,-5931.71,0.00022999,30]
[380256300,1755629251853,-1264.59,0.00022999,30]
[380256301,1755629251898,-2155.5,0.00022999,30]
[380256302,1755629251942,-1001.1,0.00022999,30]
[380256303,1755629251989,-400.0,0.00022999,30]
[380256304,1755629252043,-1745.15,0.00022999,30]
[380256305,1755629252093,-3379.2,0.00022999,30]
[380256306,1755629252141,-315.584877,0.00022999,30]
[380256307,1755629252194,-1117.83,0.00022999,30]
[380256308,1755629252248,-1338.87,0.00022999,30]
[380256309,1755629252300,-795.22,0.00022999,30]
[380256310,1755629252351,-587.48,0.00022999,30]
[380256311,1755629252401,-2323.63,0.00022999,30]
[380256312,1755629252451,-400.0,0.00022999,30]
[380256313,1755629252502,-400.0,0.00022999,30]
[380256314,1755629252550,-2517.35,0.00022999,30]
[380256315,1755629252596,-2662.98,0.00022999,30]
[380256316,1755629252641,-1544.99,0.00022999,30]
[380256317,1755629252683,-646.84,0.00022999,30]
[380256318,1755629252727,-400.0,0.00022999,30]
[380256319,1755629252771,-764.98,0.00022999,30]
[380256320,1755629252816,-728.66,0.00022999,30]
[380256321,1755629252859,-1035.87,0.00022999,30]
[380256322,1755629252904,-3465.07,0.00022999,30]
[380256323,1755629252946,-2531.47,0.00022999,30]
[380256324,1755629252997,-776.93,0.00022999,30]
[380256325,1755629253046,-6156.69,0.00022999,30]
[380256326,1755629253095,-400.0,0.00022999,30]
[380256327,1755629253142,-2693.83,0.00022999,30]
[380256328,1755629253195,-2225.65,0.00022999,30]
[380256329,1755629253255,-2683.6,0.00022999,30]
[380256330,1755629253316,-516.32,0.00022999,30]
[380256331,1755629253746,-463.45,0.00022999,30]
[380256332,1755629253802,-769.81,0.00022999,30]
[380256333,1755629253854,-3126.48,0.00022999,30]
[380256334,1755629253904,-400.0,0.00022999,30]
[380256335,1755629253956,-400.0,0.00022999,30]
[380256336,1755629254013,-400.0,0.00022999,30]
[380256337,1755629254066,-400.0,0.00022999,30]
[380256338,1755629254119,-400.0,0.00022999,30]
[380256339,1755629254170,-400.0,0.00022999,30]
[380256340,1755629254221,-400.0,0.00022999,30]
[380256341,1755629254273,-1875.41,0.00022999,30]
[380256342,1755629254320,-810.62,0.00022999,30]
[380256343,1755629254368,-656.82,0.00022999,30]
[380256344,1755629254413,-400.0,0.00022999,30]
[380256345,1755629254457,-2010.66,0.00022999,30]
[380256346,1755629254504,-3273.57,0.00022999,30]
[380256347,1755629254549,-4857.3,0.00022999,30]
[380256348,1755629254594,-427.0,0.00022999,30]
[380256349,1755629254636,-400.0,0.00022999,30]
[380256350,1755629254679,-724.21,0.00022999,30]
[380256351,1755629254723,-432.79,0.00022999,30]
[380256352,1755629254765,-400.0,0.00022999,30]
[380256353,1755629254808,-552.27,0.00022999,30]
[380256354,1755629254851,-1201.82,0.00022999,30]
[380256355,1755629254896,-2234.63,0.00022999,30]
[380256356,1755629254939,-400.0,0.00022999,30]
[380256357,1755629254984,-3387.39,0.00022999,30]
[380256358,1755629255037,-1744.1,0.00022999,30]
[380256359,1755629255096,-4321.34,0.00022999,30]
[380256360,1755629255150,-657.09,0.00022999,30]
[380256361,1755629255205,-3242.02,0.00022999,30]
[380256362,1755629255260,-400.0,0.00022999,30]
[380256363,1755629255314,-622.38,0.00022999,30]
[380256364,1755629255368,-3031.42,0.00022999,30]
[380256365,1755629255421,-5360.4,0.00022999,30]
[380256366,1755629255471,-4506.15,0.00022999,30]
[380256367,1755629255522,-400.0,0.00022999,30]
[380256368,1755629255573,-2268.72,0.00022999,30]
[380256369,1755629255623,-2569.35,0.00022999,30]
[380256370,1755629255676,-210.77,0.00022999,30]
[380256371,1755629255725,-400.0,0.00022999,30]
[380256372,1755629255773,-400.0,0.00022999,30]
[380256373,1755629255820,-400.0,0.00022999,30]
[380256374,1755629255868,-150.0,0.00023,30]
[380256375,1755629255914,-150.0,0.00023,30]
[380256376,1755629255957,-150.0,0.00023,30]
[380256377,1755629256001,-863.0,0.00023,30]
[380256378,1755629256052,-1423.01192977,0.00023273,30]
[380256379,1755629256096,-1299.7,0.00023273,30]
[380256380,1755629256142,-2024.98,0.00023273,30]
[380256381,1755629256195,-400.0,0.00023273,30]
[380256382,1755629256244,-2196.77,0.00023273,30]
[380256383,1755629256298,-677.84,0.00023273,30]
[380256384,1755629256348,-404.78,0.00023273,30]
[380256385,1755629256398,-676.66,0.00023273,30]
[380256386,1755629256448,-2622.74,0.00023273,30]
[380256387,1755629256497,-2487.77,0.00023273,30]
[380256388,1755629256543,-400.0,0.00023273,30]
[380256389,1755629256589,-1106.6,0.00023273,30]
[380256390,1755629256635,-595.97,0.00023273,30]
[380256391,1755629256680,-400.0,0.00023273,30]
[380256392,1755629256726,-425.67,0.00023273,30]
[380256393,1755629256771,-472.39,0.00023273,30]
[380256394,1755629256816,-4203.55,0.00023273,30]
[380256395,1755629256861,-400.0,0.00023273,30]
[380256396,1755629256907,-585.0,0.00023273,30]
[380256397,1755629256953,-1971.08,0.00023273,30]
[380256398,1755629257007,-2820.21,0.00023273,30]
[380256399,1755629257058,-400.0,0.00023273,30]
[380256400,1755629257110,-1294.68,0.00023273,30]
[380256401,1755629257165,-1024.24,0.00023273,30]
[380256402,1755629257219,-400.0,0.00023273,30]
[380256403,1755629257272,-3949.14,0.00023273,30]
[380256404,1755629257326,-465.63,0.00023273,30]
[380256405,1755629257378,-16565.532356,0.00023273,30]
[380256406,1755629257428,-2512.69,0.00023273,30]
[380256407,1755629257477,-576.04,0.00023273,30]
[380256408,1755629257523,-400.0,0.00023273,30]
[380256409,1755629257572,-629.38,0.00023273,30]
[380256410,1755629257620,-2439.33,0.00023273,30]
[380256411,1755629257668,-2966.76,0.00023273,30]
[380256412,1755629257716,-1223.1,0.00023273,30]
[380256413,1755629257762,-3255.31,0.00023273,30]
[380256414,1755629257810,-3353.91,0.00023273,30]
[380256415,1755629257854,-3454.52,0.00023273,30]
[380256416,1755629257901,-400.0,0.00023273,30]
[380256417,1755629257948,-986.14,0.00023273,30]
[380256418,1755629257994,-3237.38,0.00023273,30]
[380256419,1755629258041,-2287.36,0.00023273,30]
[380256420,1755629258087,-676.09,0.00023273,30]
[380256421,1755629258135,-193.12,0.00023273,30]
[380256422,1755629258183,-2147.13,0.00023273,30]
[380256423,1755629258240,-1621.71,0.00023273,30]
[380256424,1755629258292,-400.0,0.00023273,30]
[380256425,1755629258881,-400.0,0.00023273,30]
[380256426,1755629258928,-4405.72,0.00023273,30]
[380256427,1755629258975,-575.38,0.00023273,30]
[380256428,1755629259026,-3618.4,0.00023273,30]
[380256429,1755629259073,-2448.43,0.00023273,30]
[380256430,1755629259123,-1574.55,0.00023273,30]
[380256431,1755629259182,-400.0,0.00023273,30]
[380256432,1755629259234,-2556.34,0.00023273,30]
[380256433,1755629259283,-400.0,0.00023273,30]
[380256434,1755629259327,-4742.47,0.00023273,30]
[380256435,1755629259373,-4618.53,0.00023273,30]
[380256436,1755629259419,-2446.9,0.00023273,30]
[380256437,1755629259467,-590.83,0.00023273,30]
[380256438,1755629259513,-2283.21,0.00023273,30]
[380256439,1755629259558,-1666.38,0.00023273,30]
[380256440,1755629259604,-1917.1,0.00023273,30]
[380256441,1755629259650,-4566.06,0.00023273,30]
[380256442,1755629259696,-400.0,0.00023273,30]
[380256443,1755629259744,-400.0,0.00023273,30]
[380256444,1755629259790,-2488.42,0.00023273,30]
[380256445,1755629259834,-400.0,0.00023273,30]
[380256446,1755629259880,-2600.96,0.00023273,30]
[380256447,1755629259927,-1241.13,0.00023273,30]
[380256448,1755629259973,-2614.06,0.00023273,30]
[380256449,1755629260023,-2454.51,0.00023273,30]
[380256450,1755629260069,-2992.32,0.00023273,30]
[380256451,1755629260116,-2882.33,0.00023273,30]
[380256452,1755629260162,-2174.7,0.00023273,30]
[380256453,1755629260206,-3320.35,0.00023273,30]
[380256454,1755629260255,-3258.07,0.00023273,30]
[380256455,1755629260303,-482.39,0.00023273,30]
[380256456,1755629260349,-2570.46,0.00023273,30]
[380256457,1755629260394,-1183.82,0.00023273,30]
[380256458,1755629260439,-3015.43,0.00023273,30]
[380256459,1755629260482,-5931.71,0.00023273,30]
[380256460,1755629260526,-2155.5,0.00023273,30]
[380256461,1755629260568,-1264.59,0.00023273,30]
[380256462,1755629260615,-1001.1,0.00023273,30]
[380256463,1755629260661,-400.0,0.00023273,30]
[380256464,1755629260704,-1745.15,0.00023273,30]
[380256465,1755629260747,-3379.2,0.00023273,30]
[380256466,1755629260789,-1117.83,0.00023273,30]
[380256467,1755629260830,-1338.87,0.00023273,30]
[380256468,1755629260872,-795.22,0.00023273,30]
[380256469,1755629260914,-587.48,0.00023273,30]
[380256470,1755629260953,-2323.63,0.00023273,30]
[380256471,1755629260995,-400.0,0.00023273,30]
[380256472,1755629261052,-400.0,0.00023273,30]
[380256473,1755629261099,-2517.35,0.00023273,30]
[380256474,1755629261145,-2662.98,0.00023273,30]
[380256475,1755629261199,-1544.99,0.00023273,30]
[380256476,1755629261250,-646.84,0.00023273,30]
[380256477,1755629261301,-400.0,0.00023273,30]
[380256478,1755629261350,-764.98,0.00023273,30]
[380256479,1755629261396,-728.66,0.00023273,30]
[380256480,1755629261440,-1035.87,0.00023273,30]
[380256481,1755629261482,-3465.07,0.00023273,30]
[380256482,1755629261524,-2531.47,0.00023273,30]
[380256483,1755629261566,-776.93,0.00023273,30]
[380256484,1755629261611,-6156.69,0.00023273,30]
[380256485,1755629261656,-400.0,0.00023273,30]
[380256486,1755629261699,-2693.83,0.00023273,30]
[380256487,1755629261745,-2225.65,0.00023273,30]
[380256488,1755629261789,-2683.6,0.00023273,30]
[380256489,1755629261831,-516.32,0.00023273,30]
[380256490,1755629261876,-463.45,0.00023273,30]
[380256491,1755629261922,-769.81,0.00023273,30]
[380256492,1755629261968,-3126.48,0.00023273,30]
[380256493,1755629262017,-400.0,0.00023273,30]
[380256494,1755629262068,-400.0,0.00023273,30]
[380256495,1755629262117,-400.0,0.00023273,30]
[380256496,1755629262167,-400.0,0.00023273,30]
[380256497,1755629262221,-400.0,0.00023273,30]
[380256498,1755629262271,-400.0,0.00023273,30]
[380256499,1755629262331,-489.20792717,0.00023273,30]
[380256500,1755629262380,-1875.41,0.00023273,30]
[380256501,1755629262443,-810.62,0.00023273,30]
[380256502,1755629262487,-656.82,0.00023273,30]
[380256503,1755629262737,-426.8141912,0.00023273,30]
[380256504,1755629262785,-2010.66,0.00023273,30]
[380256505,1755629262833,-3273.57,0.00023273,30]
[380256506,1755629262878,-4857.3,0.00023273,30]
[380256507,1755629262922,-427.0,0.00023273,30]
[380256508,1755629262967,-400.0,0.00023273,30]
[380256509,1755629263012,-724.21,0.00023273,30]
[380256510,1755629263056,-432.79,0.00023273,30]
[380256511,1755629263099,-400.0,0.00023273,30]
[380256512,1755629263145,-552.27,0.00023273,30]
[380256513,1755629263193,-1201.82,0.00023273,30]
[380256514,1755629263235,-2234.63,0.00023273,30]
[380256515,1755629263279,-400.0,0.00023273,30]
[380256516,1755629263322,-3387.39,0.00023273,30]
[380256517,1755629263366,-1744.1,0.00023273,30]
[380256518,1755629263409,-4321.34,0.00023273,30]
[380256519,1755629263451,-657.09,0.00023273,30]
[380256520,1755629263499,-3242.02,0.00023273,30]
[380256521,1755629263542,-400.0,0.00023273,30]
[380256522,1755629263587,-3031.42,0.00023273,30]
[380256523,1755629263634,-5360.4,0.00023273,30]
[380256524,1755629263680,-622.38,0.00023273,30]
[380256525,1755629263727,-4506.15,0.00023273,30]
[380256526,1755629263773,-400.0,0.00023273,30]
[380256527,1755629263821,-2268.72,0.00023273,30]
[380256528,1755629263865,-2569.35,0.00023273,30]
[380256529,1755629263908,-400.0,0.00023273,30]
[380256530,1755629263952,-400.0,0.00023273,30]
[380256531,1755629264009,-617.63486404,0.00023274,30]
[380256532,1755629264065,-200.0,0.00023274,30]
[380256533,1755629264118,-150.0,0.00023274,30]
[380256534,1755629264168,-200.0,0.00023274,30]
[380256535,1755629264221,-863.0,0.00023274,30]
[380256536,1755629264272,-400.0,0.00023547,30]
[380256537,1755629264322,-400.0,0.00023547,30]
[380256538,1755629264371,-400.0,0.00023547,30]
[380256539,1755629264416,-400.0,0.00023547,30]
[380256540,1755629264459,-400.0,0.00023547,30]
[380256541,1755629264504,-331.05176197,0.00023547,30]
[380256542,1755629264549,-400.0,0.00023547,30]
[380256543,1755629264593,-400.0,0.00023547,30]
[380256544,1755629264638,-400.0,0.00023547,30]
[380256545,1755629264681,-400.0,0.00023547,30]
[380256546,1755629264726,-400.0,0.00023547,30]
[380256547,1755629264773,-400.0,0.00023547,30]
[380256548,1755629264820,-400.0,0.00023547,30]
[380256549,1755629264866,-400.0,0.00023547,30]
[380256550,1755629264914,-400.0,0.00023547,30]
[380256551,1755629264959,-400.0,0.00023547,30]
[380256552,1755629265005,-400.0,0.00023547,30]
[380256553,1755629265054,-400.0,0.00023547,30]
[380256554,1755629265101,-928.42,0.00023547,30]
[380256555,1755629265150,-400.0,0.00023547,30]
[380256556,1755629265199,-459.29,0.00023547,30]
[380256557,1755629265250,-400.0,0.00023547,30]
[380256558,1755629265301,-400.0,0.00023547,30]
[380256559,1755629265352,-1462.97,0.00023547,30]
[380256560,1755629265401,-400.0,0.00023547,30]
[380256561,1755629265448,-400.0,0.00023547,30]
[380256562,1755629265492,-400.0,0.00023547,30]
[380256563,1755629265537,-400.0,0.00023547,30]
[380256564,1755629265582,-400.0,0.00023547,30]
[380256565,1755629265627,-2521.52,0.00023547,30]
[380256566,1755629265672,-1068.58,0.00023547,30]
[380256567,1755629265726,-521.0798293,0.00023547,30]
[380256568,1755629265777,-395.36889787,0.00023547,30]
[380256569,1755629265821,-400.0,0.00023547,30]
[380256570,1755629265866,-441.51,0.00023547,30]
[380256571,1755629265910,-492.16273615,0.00023547,30]
[380256572,1755629265954,-423.67,0.00023547,30]
[380256573,1755629265998,-400.0,0.00023547,30]
[380256574,1755629266044,-400.0,0.00023547,30]
[380256575,1755629266089,-400.0,0.00023547,30]
[380256576,1755629266137,-438.15,0.00023547,30]
[380256577,1755629266183,-400.0,0.00023547,30]
[380256578,1755629266235,-435.75,0.00023547,30]
[380256579,1755629266282,-400.0,0.00023547,30]
[380256580,1755629266327,-417.8,0.00023547,30]
[380256581,1755629266374,-267.77125463,0.00023547,30]
[380256582,1755629266420,-400.0,0.00023547,30]
[380256583,1755629266466,-400.0,0.00023547,30]
[380256584,1755629266511,-400.0,0.00023547,30]
[380256585,1755629266559,-400.0,0.00023547,30]
[380256586,1755629266605,-639.82,0.00023547,30]
[380256587,1755629266651,-409.67,0.00023547,30]
[380256588,1755629266696,-400.0,0.00023547,30]
[380256589,1755629266741,-250.0,0.00023547,30]
[380256590,1755629266784,-400.0,0.00023547,30]
[380256591,1755629266828,-934.06,0.00023547,30]
[380256592,1755629266871,-400.0,0.00023547,30]
[380256593,1755629266913,-950.38,0.00023547,30]
[380256594,1755629266954,-400.0,0.00023547,30]
[380256595,1755629266999,-523.61,0.00023547,30]
[380256596,1755629267048,-348.64688603,0.00023547,30]
[380256597,1755629267095,-602.65,0.00023547,30]
[380256598,1755629267143,-290.99690816,0.00023547,30]
[380256599,1755629267192,-400.0,0.00023547,30]
[380256600,1755629267246,-400.0,0.00023547,30]
[380256601,1755629267298,-400.0,0.00023547,30]
[380256602,1755629267349,-400.0,0.00023547,30]
[380256603,1755629267398,-1703.34,0.00023547,30]
[380256604,1755629267443,-400.0,0.00023547,30]
[380256605,1755629267485,-2230.59,0.00023547,30]
[380256606,1755629267528,-2231.92,0.00023547,30]
[380256607,1755629267569,-400.0,0.00023547,30]
[380256608,1755629267613,-400.0,0.00023547,30]
[380256609,1755629267659,-400.0,0.00023547,30]
[380256610,1755629267701,-1197.44,0.00023547,30]
[380256611,1755629267747,-400.0,0.00023547,30]
[380256612,1755629267793,-400.0,0.00023547,30]
[380256613,1755629267835,-400.0,0.00023547,30]
[380256614,1755629267877,-418.88,0.00023547,30]
[380256615,1755629267921,-631.62,0.00023547,30]
[380256616,1755629267962,-400.0,0.00023547,30]
[380256617,1755629268007,-958.06,0.00023547,30]
[380256618,1755629268356,-839.44,0.00023547,30]
[380256619,1755629268408,-400.0,0.00023547,30]
[380256620,1755629268456,-400.0,0.00023547,30]
[380256621,1755629268505,-400.0,0.00023547,30]
[380256622,1755629268553,-400.0,0.00023547,30]
[380256623,1755629268603,-400.0,0.00023547,30]
[380256624,1755629268653,-400.0,0.00023547,30]
[380256625,1755629268702,-2272.08,0.00023547,30]
[380256626,1755629268751,-400.0,0.00023547,30]
[380256627,1755629268800,-753.97,0.00023547,30]
[380256628,1755629268849,-958.91,0.00023547,30]
[380256629,1755629268898,-487.74,0.00023547,30]
[380256630,1755629268946,-400.0,0.00023547,30]
[380256631,1755629268995,-1074.76,0.00023547,30]
[380256632,1755629269048,-400.0,0.00023547,30]
[380256633,1755629269099,-965.63,0.00023547,30]
[380256634,1755629269153,-1587.36,0.00023547,30]
[380256635,1755629269204,-234.8555267,0.00023547,30]
[380256636,1755629269256,-519.21,0.00023547,30]
[380256637,1755629269309,-400.0,0.00023547,30]
[380256638,1755629269359,-400.0,0.00023547,30]
[380256639,1755629269405,-400.0,0.00023547,30]
[380256640,1755629269449,-402.4,0.00023547,30]
[380256641,1755629269490,-1175.49,0.00023547,30]
[380256642,1755629269532,-400.0,0.00023547,30]
[380256643,1755629269573,-889.98,0.00023547,30]
[380256644,1755629269616,-400.0,0.00023547,30]
[380256645,1755629269658,-1326.08,0.00023547,30]
[380256646,1755629269699,-1985.51,0.00023547,30]
[380256647,1755629269739,-400.0,0.00023547,30]
[380256648,1755629269782,-517.06,0.00023547,30]
[380256649,1755629269825,-400.0,0.00023547,30]
[380256650,1755629269869,-400.0,0.00023547,30]
[380256651,1755629269913,-1152.19,0.00023547,30]
[380256652,1755629269959,-2164.45,0.00023547,30]
[380256653,1755629270003,-1488.41,0.00023547,30]
[380256654,1755629270048,-400.0,0.00023547,30]
[380256655,1755629270091,-400.0,0.00023547,30]
[380256656,1755629270137,-1489.72,0.00023547,30]
[380256657,1755629270186,-893.93,0.00023547,30]
[380256658,1755629270235,-400.0,0.00023547,30]
[380256659,1755629270279,-1715.57,0.00023547,30]
[380256660,1755629270323,-2955.6,0.00023547,30]
[380256661,1755629270369,-400.0,0.00023547,30]
[380256662,1755629270418,-400.0,0.00023547,30]
[380256663,1755629270465,-400.0,0.00023547,30]
[380256664,1755629270509,-552.81,0.00023547,30]
[380256665,1755629270552,-843.59,0.00023547,30]
[380256666,1755629270597,-588.75,0.00023547,30]
[380256667,1755629270640,-2053.89,0.00023547,30]
[380256668,1755629270682,-526.99,0.00023547,30]
[380256669,1755629270726,-400.0,0.00023547,30]
[380256670,1755629270771,-1005.69,0.00023547,30]
[380256671,1755629270819,-2030.2,0.00023547,30]
[380256672,1755629270863,-400.0,0.00023547,30]
[380256673,1755629270908,-1146.29,0.00023547,30]
[380256674,1755629270954,-263.45151863,0.00023547,30]
[380256675,1755629271004,-400.0,0.00023547,30]
[380256676,1755629271052,-400.0,0.00023547,30]
[380256677,1755629271101,-400.0,0.00023547,30]
[380256678,1755629271149,-1058.6,0.00023547,30]
[380256679,1755629271198,-2358.52,0.00023547,30]
[380256680,1755629271248,-1273.57,0.00023547,30]
[380256681,1755629271295,-505.13,0.00023547,30]
[380256682,1755629271340,-1267.45,0.00023547,30]
[380256683,1755629271390,-1215.65,0.00023547,30]
[380256684,1755629271436,-1218.38,0.00023547,30]
[380256685,1755629271483,-400.0,0.00023547,30]
[380256686,1755629271532,-400.0,0.00023547,30]
[380256687,1755629271582,-400.0,0.00023547,30]
[380256688,1755629271629,-400.0,0.00023547,30]
[380256689,1755629271675,-418.85,0.00023547,30]
[380256690,1755629271722,-443.21,0.00023547,30]
[380256691,1755629271768,-400.0,0.00023547,30]
[380256692,1755629271815,-615.38,0.00023547,30]
[380256693,1755629271862,-400.0,0.00023547,30]
[380256694,1755629271906,-670.98,0.00023547,30]
[380256695,1755629271953,-400.0,0.00023547,30]
[380256696,1755629271999,-3671.25,0.00023547,30]
[380256697,1755629272052,-400.0,0.00023547,30]
[380256698,1755629272100,-850.82,0.00023547,30]
[380256699,1755629272151,-400.0,0.00023547,30]
[380256700,1755629272199,-765.04,0.00023547,30]
[380256701,1755629272245,-443.1,0.00023547,30]
[380256702,1755629272292,-526.61,0.00023547,30]
[380256703,1755629272338,-437.21,0.00023547,30]
[380256704,1755629272380,-406.86,0.00023547,30]
[380256705,1755629272424,-636.19,0.00023547,30]
[380256706,1755629272470,-400.0,0.00023547,30]
[380256707,1755629272517,-400.0,0.00023547,30]
[380256708,1755629272566,-400.0,0.00023547,30]
[380256709,1755629272616,-2728.43,0.00023547,30]
[380256710,1755629272663,-400.0,0.00023547,30]
[380256711,1755629272708,-508.22992281,0.00023547,30]
[380256712,1755629272753,-849.93,0.00023547,30]
[380256713,1755629273158,-1555.8,0.00023547,30]
[380256714,1755629273212,-2094.84,0.00023547,30]
[380256715,1755629273258,-1152.96,0.00023547,30]
[380256716,1755629273305,-2348.96,0.00023547,30]
[380256717,1755629273351,-1870.91,0.00023547,30]
[380256718,1755629273396,-675.96,0.00023547,30]
[380256719,1755629273441,-400.0,0.00023547,30]
[380256720,1755629273485,-400.0,0.00023547,30]
[380256721,1755629273529,-1168.52,0.00023547,30]
[380256722,1755629273574,-529.14176115,0.00023547,30]
[380256723,1755629273620,-2498.74,0.00023547,30]
[380256724,1755629273666,-400.0,0.00023547,30]
[380256725,1755629273713,-393.6275319,0.00023547,30]
[380256726,1755629273759,-400.0,0.00023547,30]
[380256727,1755629273803,-1267.71,0.00023547,30]
[380256728,1755629273851,-400.0,0.00023547,30]
[380256729,1755629273897,-1054.41,0.00023547,30]
[380256730,1755629273940,-400.0,0.00023547,30]
[380256731,1755629273985,-400.0,0.00023547,30]
[380256732,1755629274030,-400.0,0.00023547,30]
[380256733,1755629274076,-703.87,0.00023547,30]
[380256734,1755629274125,-2695.11,0.00023547,30]
[380256735,1755629274175,-400.0,0.00023547,30]
[380256736,1755629274227,-400.0,0.00023547,30]
[380256737,1755629274276,-400.0,0.00023547,30]
[380256738,1755629274324,-457.87,0.00023547,30]
[380256739,1755629274369,-400.0,0.00023547,30]
[380256740,1755629274416,-1077.59,0.00023547,30]
[380256741,1755629274461,-400.0,0.00023547,30]
[380256742,1755629274506,-400.0,0.00023547,30]
[380256743,1755629274551,-400.0,0.00023547,30]
[380256744,1755629274595,-803.76,0.00023547,30]
[380256745,1755629274639,-562.14,0.00023547,30]
[380256746,1755629274683,-400.0,0.00023547,30]
[380256747,1755629274727,-1935.91,0.00023547,30]
[380256748,1755629274774,-432.86,0.00023547,30]
[380256749,1755629274821,-521.92,0.00023547,30]
[380256750,1755629274869,-400.0,0.00023547,30]
[380256751,1755629274921,-608.59,0.00023547,30]
[380256752,1755629274972,-2166.45,0.00023547,30]
[380256753,1755629275026,-479.87,0.00023547,30]
[380256754,1755629275076,-589.11,0.00023547,30]
[380256755,1755629275124,-2577.22,0.00023547,30]
[380256756,1755629275174,-400.0,0.00023547,30]
[380256757,1755629275227,-400.0,0.00023547,30]
[380256758,1755629275277,-400.0,0.00023547,30]
[380256759,1755629275326,-400.0,0.00023547,30]
[380256760,1755629275374,-408.11756712,0.00023547,30]
[380256761,1755629275421,-400.0,0.00023547,30]
[380256762,1755629275464,-412.32,0.00023547,30]
[380256763,1755629275508,-2726.08,0.00023547,30]
[380256764,1755629275551,-481.92,0.00023547,30]
[380256765,1755629275594,-890.73,0.00023547,30]
[380256766,1755629275638,-400.0,0.00023547,30]
[380256767,1755629275684,-3831.53,0.00023547,30]
[380256768,1755629275727,-2249.93,0.00023547,30]
[380256769,1755629275769,-901.47,0.00023547,30]
[380256770,1755629275812,-400.0,0.00023547,30]
[380256771,1755629275853,-1232.22,0.00023547,30]
[380256772,1755629275896,-620.09,0.00023547,30]
[380256773,1755629275937,-1076.14,0.00023547,30]
[380256774,1755629275979,-400.0,0.00023547,30]
[380256775,1755629276025,-1476.73,0.00023547,30]
[380256776,1755629276076,-2866.23,0.00023547,30]
[380256777,1755629276127,-2226.33,0.00023547,30]
[380256778,1755629276172,-516.16,0.00023547,30]
[380256779,1755629276219,-738.05,0.00023547,30]
[380256780,1755629276272,-1045.72,0.00023547,30]
[380256781,1755629276321,-1877.74,0.00023547,30]
[380256782,1755629276366,-400.0,0.00023547,30]
[380256783,1755629276408,-1016.22,0.00023547,30]
[380256784,1755629276450,-400.0,0.00023547,30]
[380256785,1755629276491,-778.49,0.00023547,30]
[380256786,1755629276532,-2691.17,0.00023547,30]
[380256787,1755629276573,-524.11,0.00023547,30]
[380256788,1755629276613,-2324.34,0.00023547,30]
[380256789,1755629276656,-927.54,0.00023547,30]
[380256790,1755629276701,-400.0,0.00023547,30]
[380256791,1755629276856,-400.0,0.00023547,30]
[380256792,1755629276902,-400.0,0.00023547,30]
[380256793,1755629276945,-400.0,0.00023547,30]
[380256794,1755629276988,-400.0,0.00023547,30]
[380256795,1755629277031,-400.0,0.00023547,30]
[380256796,1755629277076,-400.0,0.00023547,30]
[380256797,1755629277124,-414.97,0.00023547,30]